bitfinex/quotes_ETHUSD_20241122
["timestamp","ask_amount","ask_price","bid_price","bid_amount"]
[1732256409308,0.27353169,3363.1,3361.4,0.01]
[1732256409309,0.8605961,3363.0,3361.4,0.01]
[1732256409509,0.27353169,3362.9,3361.6,0.22514735]
[1732256409714,0.55,3362.7,3361.7,0.21514735]
[1732256409910,0.3105961,3362.6,3361.8,0.21514735]
[1732256410148,0.27353169,3362.5,3361.5,0.045]
[1732256410349,0.03706441,3362.6,3361.5,0.045]
[1732256410350,0.3105961,3362.4,3361.7,0.2961]
[1732256410654,0.3105961,3362.4,3361.9,0.2961]
[1732256410655,0.27353169,3362.3,3361.9,0.2961]
[1732256410814,0.27353169,3362.3,3361.9,0.3061]
[1732256411015,0.03706441,3362.8,3361.9,0.3161]
[1732256411259,0.273319,3362.7,3362.0,0.51122705]
[1732256411548,0.273319,3362.6,3362.1,0.21512705]
[1732256411723,0.273319,3362.5,3362.0,3.2961]
[1732256412045,1.23943761,3363.1,3362.0,0.2961]
[1732256412046,0.273319,3362.4,3362.0,0.2961]
[1732256412250,0.03706441,3362.8,3362.1,0.21521546]
[1732256412455,0.27350811,3362.7,3362.2,0.2152941]
[1732256412755,0.31057252,3362.6,3362.0,0.2961]
[1732256412989,0.27350811,3362.5,3362.0,0.2961]
[1732256413140,0.31066954,3362.4,3362.0,3.2961]
[1732256413406,0.27360513,3362.3,3362.1,0.2153164]
[1732256413657,0.27360513,3362.2,3362.0,0.2961]
[1732256413853,0.03706441,3362.6,3362.1,0.21531788]
[1732256414055,0.27356784,3362.5,3362.0,3.2961]
[1732256414257,0.27356784,3362.4,3362.1,0.21530815]
[1732256414441,0.27356784,3362.3,3362.0,3.0]
[1732256414616,0.03706441,3362.7,3362.0,3.0]
[1732256414617,0.27356784,3362.2,3362.0,3.0]
[1732256414818,0.27356784,3362.1,3361.6,0.2961]
[1732256415047,0.7753,3362.4,3361.7,0.21529705]
[1732256415253,0.31065129,3362.3,3361.8,0.21529705]
[1732256415460,0.27358688,3362.2,3361.5,0.045]
[1732256415751,0.31065129,3362.1,3361.6,0.51136328]
[1732256415918,0.27358688,3362.0,3361.7,0.21526328]
[1732256416118,0.31065129,3361.9,3361.6,0.2961]
[1732256416317,0.03706441,3361.9,3361.7,0.21520524]
[1732256416519,0.58706441,3362.3,3361.6,0.2961]
[1732256416861,0.27343862,3362.2,3361.7,0.21518563]
[1732256417157,0.27343862,3362.1,3361.8,0.21517459]
[1732256417355,0.27343862,3362.1,3361.6,0.2961]
[1732256417356,0.27343862,3362.0,3361.6,0.2961]
[1732256417534,0.7753,3362.4,3361.6,0.2961]
[1732256417862,0.31045194,3362.3,3361.6,0.2961]
[1732256418157,0.27338753,3362.2,3361.6,0.2961]
[1732256418321,0.31045194,3362.1,3361.6,0.2961]
[1732256418522,0.27338753,3362.0,3361.6,0.2961]
[1732256418822,0.27338753,3362.0,3361.5,0.045]
[1732256418823,0.55,3361.7,3361.5,0.045]
[1732256419035,0.86045194,3361.6,3361.5,0.045]
[1732256419363,0.86045194,3361.6,3358.7,0.2961]
[1732256419364,0.55,3361.1,3359.2,0.01]
[1732256419671,0.55,3360.7,3359.0,0.01]
[1732256419872,0.55,3360.3,3359.0,0.01]
[1732256420083,0.55,3360.1,3359.0,0.01]
[1732256420282,1.3253,3360.1,3358.6,0.01]
[1732256420561,1.3253,3360.1,3359.1,0.01]
[1732256420562,0.27285643,3360.1,3359.1,0.01]
[1732256420732,0.27285643,3360.1,3359.2,0.01]
[1732256421239,0.03706441,3360.5,3359.2,0.01]
[1732256421421,0.27207813,3360.4,3359.3,0.01]
[1732256421626,0.03706441,3360.5,3359.5,0.01]
[1732256422545,0.03706441,3360.5,3359.7,3.0]
[1732256423647,0.03706441,3360.5,3360.0,2.04718672]
[1732256423854,0.18558159,3361.8,3360.0,2.04718672]
[1732256423855,0.55,3361.2,3360.0,2.04718672]
[1732256424163,0.27165305,3361.1,3360.0,2.04718672]
[1732256424363,0.03706441,3361.0,3360.1,0.2961]
[1732256424570,0.03706441,3361.0,3360.1,3.51281867]
[1732256424784,0.03706441,3361.2,3360.1,3.51281867]
[1732256425073,0.03706441,3361.2,3360.3,0.3061]
[1732256425887,0.03706441,3361.2,3360.2,0.55700054]
[1732256425888,0.03706441,3361.6,3360.7,0.2961]
[1732256426047,0.03706441,3361.6,3360.6,0.7698]
[1732256426048,0.03706441,3361.6,3360.9,0.2961]
[1732256426239,0.7753,3362.1,3361.0,0.62571]
[1732256426240,0.03706441,3362.0,3361.0,0.62571]
[1732256426438,0.03706441,3362.0,3361.0,0.2961]
[1732256427140,0.03706441,3362.0,3361.1,0.2961]
[1732256427666,0.7753,3362.1,3361.1,0.62571]
[1732256427865,0.03706441,3362.0,3361.3,0.2961]
[1732256428038,0.03706441,3362.0,3361.3,3.2961]
[1732256428419,0.03706441,3362.0,3361.5,0.2961]
[1732256428663,0.03706441,3362.4,3361.5,0.2961]
[1732256429025,0.03706441,3362.4,3361.5,3.2961]
[1732256429365,0.27167332,3362.3,3361.5,3.0]
[1732256429675,0.27167332,3362.3,3361.5,3.3362571]
[1732256429962,0.03706441,3362.4,3361.5,3.3362571]
[1732256430333,0.81826441,3362.5,3361.5,0.3362571]
[1732256430661,0.27171011,3362.4,3361.5,3.0]
[1732256430833,0.03706441,3362.3,3360.9,0.01]
[1732256431233,0.03706441,3362.3,3361.5,3.0]
[1732256431568,0.03706441,3362.3,3361.4,0.01]
[1732256431864,0.58706441,3362.4,3360.9,0.02]
[1732256432025,0.2717566,3362.3,3360.9,0.02]
[1732256432265,0.03706441,3362.2,3361.5,3.0]
[1732256432859,0.03706441,3362.2,3361.2,0.01]
[1732256433065,0.03706441,3362.2,3360.9,0.01]
[1732256433265,0.55,3362.4,3360.9,0.01]
[1732256433266,0.03706441,3362.3,3361.5,3.0]
[1732256433488,0.03706441,3362.3,3361.5,0.301]
[1732256433697,0.03706441,3362.3,3360.9,0.02]
[1732256433892,0.27188322,3362.2,3361.4,0.01]
[1732256434163,0.03706441,3362.2,3361.7,3.0]
[1732256434406,0.03706441,3362.9,3361.8,0.37717]
[1732256434569,0.03706441,3362.9,3361.8,0.01]
[1732256434769,0.2720977,3362.8,3361.8,0.01]
[1732256435010,0.2720977,3362.8,3361.7,3.0]
[1732256435011,0.03706441,3362.7,3361.7,0.01]
[1732256435211,0.2720977,3362.6,3361.7,0.01]
[1732256435506,0.03706441,3362.5,3361.9,3.0]
[1732256435800,0.03706441,3363.0,3361.9,3.0]
[1732256435999,0.2723947,3362.9,3361.9,3.0]
[1732256436201,0.03706441,3362.8,3361.8,0.01]
[1732256436501,0.2723947,3362.7,3361.9,3.0]
[1732256436705,0.03706441,3362.6,3361.9,3.0]
[1732256437000,0.2723947,3362.5,3361.9,3.0]
[1732256437180,0.03706441,3362.4,3361.9,3.0]
[1732256437703,0.7812,3363.1,3361.9,3.0]
[1732256437704,0.03706441,3363.0,3361.9,3.0]
[1732256437863,0.27277163,3362.9,3361.8,0.01]
[1732256438063,0.03706441,3362.8,3361.8,0.01]
[1732256438270,0.27277163,3362.9,3361.8,0.02]
[1732256438271,0.27277392,3362.7,3361.8,0.02]
[1732256438575,0.03706441,3362.9,3361.8,0.02]
[1732256438766,0.03706441,3362.9,3362.0,0.01]
[1732256439088,3.0,3364.2,3361.8,0.01]
[1732256439089,0.7812,3363.5,3362.4,0.02]
[1732256439406,0.7812,3363.5,3362.9,0.2961]
[1732256440166,0.03706441,3363.4,3362.9,0.2961]
[1732256440411,0.03706441,3363.4,3362.5,0.2961]
[1732256440703,0.27278548,3363.3,3362.5,0.2961]
[1732256440901,0.03706441,3363.2,3362.5,0.2961]
[1732256441102,0.27278699,3363.1,3362.5,0.2961]
[1732256441312,0.03706441,3363.0,3362.5,0.2961]
[1732256441672,0.7812,3363.5,3362.5,0.2961]
[1732256441673,0.03706441,3363.4,3362.5,0.2961]
[1732256441873,0.27271908,3363.3,3362.5,0.2961]
[1732256442166,0.03706441,3363.2,3362.5,0.2961]
[1732256442805,0.03706441,3363.2,3361.6,0.31869403]
[1732256442806,0.7516,3363.0,3362.6,0.2961]
[1732256443016,0.55,3362.8,3362.6,0.2961]
[1732256443200,1.06132764,3362.7,3362.6,0.2961]
[1732256443709,1.06132764,3362.7,3361.5,0.2961]
[1732256444003,0.7516,3363.1,3362.2,0.01]
[1732256444202,0.78866441,3363.1,3362.2,0.01]
[1732256444408,0.78866441,3363.1,3362.4,0.2961]
[1732256444983,0.7516,3363.8,3362.4,0.3161]
[1732256445314,0.30982224,3363.7,3362.6,0.3061]
[1732256445515,0.03706441,3363.7,3362.6,0.3061]
[1732256445715,0.03706441,3363.7,3362.6,0.3161]
[1732256445888,0.03706441,3363.7,3362.9,0.01]
[1732256446088,0.4548017,3364.7,3362.9,0.01]
[1732256446089,0.7516,3364.2,3363.1,0.2961]
[1732256446418,0.27270989,3364.1,3363.1,0.2961]
[1732256446725,0.03706441,3364.1,3363.5,0.2961]
[1732256447089,0.4548017,3365.1,3363.5,0.2961]
[1732256447090,0.7516,3364.9,3363.5,0.2961]
[1732256447385,0.30968531,3364.8,3363.5,0.62771]
[1732256447599,0.2726209,3364.7,3363.5,0.62771]
[1732256447812,0.03706441,3364.6,3363.5,0.62771]
[1732256448377,0.03706441,3364.6,3363.5,0.2961]
[1732256448775,0.03706441,3364.8,3363.5,0.2961]
[1732256448974,0.27231872,3364.7,3363.5,0.2961]
[1732256449329,0.03706441,3364.6,3363.3,0.01]
[1732256449486,1.02391872,3364.5,3363.1,0.2961]
[1732256449822,0.30938313,3364.4,3363.1,0.2961]
[1732256450000,0.27231872,3364.3,3363.1,0.2961]
[1732256450206,0.03706441,3364.2,3363.3,0.01]
[1732256450405,0.03706441,3364.2,3363.3,0.2961]
[1732256451114,0.03706441,3364.4,3363.3,0.2961]
[1732256451318,0.27225895,3364.3,3363.4,0.01]
[1732256451520,0.03706441,3364.2,3363.1,0.3061]
[1732256451685,0.03706441,3364.2,3363.1,0.2961]
[1732256451880,0.03706441,3364.2,3363.2,0.01]
[1732256452083,0.7516,3364.5,3363.1,0.2961]
[1732256452084,0.03706441,3364.4,3363.4,0.01]
[1732256452915,0.7516,3365.1,3363.7,1.0591]
[1732256453222,0.30954709,3365.0,3363.7,1.0591]
[1732256453444,0.27248268,3364.9,3363.7,1.0591]
[1732256453598,0.03706441,3364.8,3363.7,1.0591]
[1732256453783,0.27248268,3364.7,3363.7,1.0591]
[1732256453980,0.03706441,3364.6,3363.7,1.0591]
[1732256454917,0.27263013,3364.5,3363.7,1.0591]
[1732256455125,0.03706441,3364.4,3363.7,1.0591]
[1732256455326,0.03706441,3365.0,3363.7,1.0691]
[1732256455621,0.27266028,3364.9,3363.8,0.40691]
[1732256455919,0.30972529,3364.8,3363.8,0.40691]
[1732256456107,0.27266088,3364.7,3363.8,0.40691]
[1732256456310,0.03706441,3364.6,3363.8,0.70301]
[1732256456485,0.27266088,3364.7,3363.8,0.70301]
[1732256456486,0.03706441,3365.0,3364.0,0.01]
[1732256456684,0.18534271,3365.9,3364.0,0.01]
[1732256456685,0.27268457,3364.9,3364.2,0.02]
[1732256456885,0.78866441,3365.9,3364.6,0.01]
[1732256457196,0.30979845,3365.8,3364.9,1.0591]
[1732256457398,0.03706441,3365.8,3364.9,1.0591]
[1732256457607,0.03706441,3366.3,3364.9,1.0591]
[1732256457811,0.27257382,3366.2,3365.0,0.01]
[1732256457990,0.03706441,3366.1,3365.0,0.01]
[1732256458327,0.27257382,3366.0,3365.2,0.01]
[1732256458533,0.7516,3366.4,3365.2,0.01]
[1732256458534,0.03706441,3366.4,3365.6,0.763]
[1732256458753,0.27242613,3366.3,3365.7,0.2961]
[1732256459035,0.03706441,3366.2,3365.7,0.2961]
[1732256459212,0.03706441,3366.7,3365.7,0.2961]
[1732256459409,0.27243857,3366.6,3365.7,0.2961]
[1732256459622,0.27243857,3366.6,3365.2,0.763]
[1732256459623,0.03706441,3366.5,3365.3,0.2961]
[1732256459830,0.27224578,3366.4,3365.3,0.2961]
[1732256459996,0.03706441,3366.3,3365.3,0.2961]
[1732256460203,0.03706441,3366.3,3365.5,0.2961]
[1732256460700,0.03706441,3366.7,3365.5,0.2961]
[1732256461029,0.27228809,3366.6,3365.5,0.2961]
[1732256461231,0.03706441,3366.5,3365.8,0.01]
[1732256461432,0.7516,3366.8,3365.5,0.3061]
[1732256461635,0.3090972,3366.7,3365.8,0.01]
[1732256461799,0.03706441,3366.7,3365.8,0.01]
[1732256462001,0.03706441,3366.7,3365.5,0.3061]
[1732256462337,0.27190723,3366.6,3365.8,0.01]
[1732256462649,0.03706441,3367.1,3365.9,0.763]
[1732256462797,0.27190276,3367.0,3365.9,0.763]
[1732256462998,0.03706441,3366.9,3366.0,0.01]
[1732256463253,0.7516,3367.6,3366.4,0.01]
[1732256463401,0.30884844,3367.5,3366.4,0.02]
[1732256463602,0.78866441,3368.0,3366.6,0.01]
[1732256463801,0.27182408,3367.9,3366.6,0.01]
[1732256464145,0.27182408,3367.9,3366.9,0.763]
[1732256464329,0.03706441,3368.4,3366.9,0.763]
[1732256464330,0.03706441,3367.8,3366.9,0.763]
[1732256464633,0.03706441,3368.3,3366.9,0.763]
[1732256464838,0.27168252,3368.2,3366.9,0.763]
[1732256465019,0.78866441,3368.1,3366.7,0.01]
[1732256465203,0.27173884,3368.0,3366.7,0.01]
[1732256465400,0.27173884,3368.0,3366.5,0.763]
[1732256465401,1.3016,3367.8,3366.5,0.763]
[1732256465602,0.30880325,3367.7,3366.5,0.763]
[1732256465838,0.30880325,3367.7,3366.1,0.763]
[1732256465839,0.27173884,3367.6,3366.1,0.763]
[1732256466136,0.03706441,3367.5,3366.1,0.773]
[1732256466299,0.27173884,3367.4,3366.1,0.763]
[1732256466500,0.7516,3367.2,3366.1,0.763]
[1732256466808,0.30880325,3367.1,3366.1,0.763]
[1732256467020,0.27173884,3367.0,3366.1,0.763]
[1732256467220,0.03706441,3366.9,3366.1,0.763]
[1732256468233,0.03706441,3367.1,3366.1,0.763]
[1732256468949,0.7516,3367.6,3366.4,0.01]
[1732256469101,0.03706441,3367.5,3366.4,0.01]
[1732256469405,0.03706441,3367.5,3366.4,0.02]
[1732256470240,0.03706441,3367.5,3366.2,0.02]
[1732256470439,0.03706441,3367.5,3366.3,0.01]
[1732256470730,0.03706441,3367.5,3366.4,0.01]
[1732256471302,0.03706441,3367.5,3366.2,0.02]
[1732256472712,0.03706441,3367.5,3366.2,0.01]
[1732256473034,0.55,3367.1,3365.4,0.8261]
[1732256473340,0.03706441,3367.0,3365.5,0.01]
[1732256473554,0.03706441,3367.0,3365.6,0.01]
[1732256473762,0.03706441,3367.0,3365.5,0.01]
[1732256474055,0.03706441,3367.0,3365.4,0.8261]
[1732256474357,0.27195497,3366.9,3365.5,0.2961]
[1732256474515,0.03706441,3366.8,3365.5,0.2961]
[1732256474715,0.27195497,3366.7,3365.5,0.2961]
[1732256474943,0.27195497,3366.7,3365.4,0.8261]
[1732256474944,0.8167,3366.5,3365.4,0.8261]
[1732256475147,0.30901938,3366.4,3365.4,0.52968]
[1732256475422,0.27195497,3366.3,3365.4,0.52968]
[1732256475621,0.03706441,3366.2,3365.4,0.52968]
[1732256475997,0.27195497,3366.1,3365.4,0.52968]
[1732256476258,0.03706441,3366.0,3365.5,0.2961]
[1732256476464,0.27195497,3365.9,3365.5,0.2961]
[1732256476763,0.03706441,3365.8,3365.5,0.2961]
[1732256477135,0.03706441,3366.4,3365.5,0.2961]
[1732256477364,0.27233829,3366.3,3365.5,0.2961]
[1732256477660,0.03706441,3366.2,3365.5,0.2961]
[1732256477820,0.27233829,3366.1,3364.9,0.01]
[1732256478026,0.03706441,3366.0,3365.0,0.01]
[1732256478330,0.3094027,3366.0,3365.4,0.2961]
[1732256478538,0.27233829,3365.9,3365.4,0.2961]
[1732256478718,0.03706441,3365.8,3365.4,0.2961]
[1732256478927,0.27233829,3365.7,3365.4,0.2961]
[1732256479124,0.03706441,3366.4,3365.4,0.2961]
[1732256479370,0.27242364,3366.3,3365.4,0.2961]
[1732256479521,0.30948805,3366.2,3365.4,0.2961]
[1732256479846,0.27242364,3366.1,3365.4,0.2961]
[1732256480046,0.03706441,3366.0,3365.4,0.2961]
[1732256480262,0.27242364,3365.9,3365.5,0.01]
[1732256480422,0.03706441,3366.4,3365.5,0.01]
[1732256480624,0.2726533,3366.3,3365.4,0.3061]
[1732256480832,0.03706441,3366.2,3365.4,0.3061]
[1732256481057,0.2726533,3366.1,3365.5,0.01]
[1732256481562,0.2726533,3366.1,3365.7,0.01]
[1732256481563,0.03706441,3366.0,3365.7,0.01]
[1732256482023,0.27285414,3365.9,3365.7,0.01]
[1732256482221,0.03706441,3366.6,3365.7,0.01]
[1732256482421,0.27306461,3366.5,3365.7,0.01]
[1732256482643,0.31012902,3366.4,3365.7,0.01]
[1732256482843,0.27306461,3366.3,3365.7,0.01]
[1732256483079,0.03706441,3366.2,3365.7,0.01]
[1732256483364,0.27306461,3366.1,3365.4,0.3061]
[1732256483522,0.31012902,3366.0,3365.4,0.3061]
[1732256483726,0.27306461,3365.9,3365.4,0.2961]
[1732256484150,0.31012902,3365.8,3365.6,0.01]
[1732256484335,0.03706441,3366.4,3365.6,0.01]
[1732256484525,0.27337165,3366.3,3365.6,0.01]
[1732256484865,0.31043606,3366.2,3365.6,0.01]
[1732256485024,0.27337165,3366.1,3365.6,0.01]
[1732256485224,0.92545064,3366.8,3366.1,0.2961]
[1732256485464,0.27357029,3366.7,3366.1,0.2961]
[1732256485659,0.18525905,3367.2,3366.1,0.2961]
[1732256485660,0.03706441,3366.6,3366.1,0.2961]
[1732256485868,0.27357482,3366.5,3366.1,0.2961]
[1732256486159,0.27357482,3366.4,3366.1,0.2961]
[1732256486367,0.27357482,3366.3,3366.1,0.2961]
[1732256486526,0.27357482,3366.2,3366.1,0.2961]
[1732256487237,0.71129454,3366.2,3366.1,0.2961]
[1732256487865,1.20431699,3366.2,3366.1,0.2961]
[1732256488047,0.74835895,3366.2,3365.3,0.2961]
[1732256488368,1.16759838,3366.1,3365.3,0.2961]
[1732256488602,0.74835895,3366.0,3365.3,0.2961]
[1732256488805,0.71129454,3365.9,3365.3,0.2961]
[1732256489006,0.74835895,3365.8,3365.3,0.2961]
[1732256489302,0.27357482,3365.7,3365.3,0.2961]
[1732256489499,0.03706441,3365.8,3365.3,0.2961]
[1732256489500,0.27357482,3365.6,3365.3,0.2961]
[1732256489791,0.27357482,3365.5,3365.3,0.2961]
[1732256490000,0.27357482,3365.4,3365.3,0.2961]
[1732256490208,0.27357482,3365.4,3365.3,0.3061]
[1732256490357,0.27357482,3365.4,3365.3,0.2961]
[1732256490556,0.27357482,3365.4,3365.3,0.3061]
[1732256490761,0.43771972,3366.0,3365.4,0.01]
[1732256490997,0.31086513,3365.9,3365.4,0.01]
[1732256491176,0.27380072,3365.8,3365.4,0.01]
[1732256491358,0.27380072,3365.7,3365.4,0.01]
[1732256491564,0.27380072,3365.6,3365.4,0.01]
[1732256491905,0.27380072,3365.5,3365.4,0.01]
[1732256492103,0.27380072,3366.0,3365.4,0.01]
[1732256492316,0.03706441,3366.1,3365.4,0.01]
[1732256492317,0.31086513,3365.9,3365.4,0.01]
[1732256492612,0.27380072,3365.8,3365.3,0.2961]
[1732256492909,0.31086513,3365.7,3365.3,0.3061]
[1732256493120,0.27380072,3365.6,3365.3,0.3061]
[1732256493274,0.27380072,3365.5,3365.3,0.3061]
[1732256493477,0.27380072,3365.8,3365.3,0.3061]
[1732256493695,0.27387513,3365.7,3365.4,0.01]
[1732256493926,0.43771972,3366.2,3365.8,0.01]
[1732256494079,0.27388498,3366.1,3365.8,0.3061]
[1732256494270,0.03706441,3366.7,3365.8,0.3061]
[1732256494271,0.27388498,3366.0,3365.8,0.3061]
[1732256494478,0.27388498,3365.9,3365.8,0.3061]
[1732256494876,0.7116047,3366.4,3365.8,0.3061]
[1732256495087,0.27388498,3366.3,3366.0,0.01]
[1732256495298,0.43771972,3366.6,3366.0,0.01]
[1732256495299,0.27388498,3366.2,3366.0,0.01]
[1732256495503,0.27388498,3366.1,3366.0,0.01]
[1732256495908,0.27431773,3366.1,3366.0,0.01]
[1732256496422,0.31145129,3366.1,3366.0,0.01]
[1732256496630,0.27438688,3366.1,3366.0,0.01]
[1732256497912,0.27438688,3366.1,3366.0,1.1]
[1732256498281,0.43901902,3366.7,3366.0,1.31545738]
[1732256498619,0.754,3367.5,3366.0,1.31545738]
[1732256498620,0.43901902,3366.9,3366.2,0.3061]
[1732256498817,0.22230403,3367.4,3366.5,0.01]
[1732256498818,0.03706441,3366.8,3366.5,0.01]
[1732256499118,0.03706441,3366.8,3366.4,0.2961]
[1732256499430,0.03706441,3366.8,3366.4,0.3061]
[1732256499616,0.47597574,3367.0,3366.4,0.2961]
[1732256499823,0.43891133,3366.9,3366.6,0.01]
[1732256500023,0.03706441,3366.8,3366.2,0.01]
[1732256500195,0.03706441,3366.8,3366.7,0.01]
[1732256500396,0.43891133,3367.0,3366.7,0.01]
[1732256500596,0.43891133,3367.1,3366.9,0.2961]
[1732256500795,0.43891133,3367.3,3366.9,0.2961]
[1732256500996,0.43891133,3367.2,3366.9,0.2961]
[1732256501296,0.43891133,3367.4,3366.9,0.3061]
[1732256501491,0.4571993,3367.7,3366.9,0.3061]
[1732256501492,0.03706441,3367.7,3367.1,0.01]
[1732256501691,0.43872967,3367.6,3367.1,0.01]
[1732256501877,0.43872967,3367.5,3367.1,0.01]
[1732256502086,0.43872967,3367.6,3367.1,0.01]
[1732256502382,0.03706441,3367.7,3367.1,0.01]
[1732256502383,0.47579408,3367.7,3367.1,0.01]
[1732256502582,0.47579408,3367.7,3366.9,0.2961]
[1732256502583,0.03706441,3367.7,3366.9,0.2961]
[1732256502781,0.43872967,3367.6,3366.9,0.2961]
[1732256503121,0.03706441,3367.5,3367.1,0.01]
[1732256503283,0.03706441,3367.5,3366.9,0.2961]
[1732256503918,0.03706441,3367.6,3366.9,0.2961]
[1732256504085,0.47579408,3367.6,3366.9,0.2961]
[1732256504430,0.03706441,3367.6,3366.9,0.2961]
[1732256504607,0.47579408,3367.6,3366.9,0.2961]
[1732256504788,0.03706441,3367.6,3366.9,0.2961]
[1732256504989,0.47579408,3367.6,3366.9,0.2961]
[1732256505211,0.03706441,3367.6,3366.7,0.01]
[1732256505528,0.47579408,3367.6,3366.7,0.01]
[1732256505688,0.89573974,3367.5,3366.7,0.01]
[1732256505891,0.03706441,3367.4,3366.7,0.01]
[1732256506320,0.03706441,3367.4,3366.6,0.2961]
[1732256506498,0.832,3367.3,3366.6,0.2961]
[1732256506795,0.03706441,3367.2,3366.6,0.2961]
[1732256507806,0.03706441,3367.4,3366.6,0.2961]
[1732256508106,0.03706441,3367.4,3366.7,0.01]
[1732256508622,0.93216067,3367.4,3366.6,0.2961]
[1732256508824,0.03706441,3367.4,3366.6,0.2961]
[1732256509132,0.93216067,3367.4,3366.6,0.2961]
[1732256509336,0.43841449,3367.3,3366.6,0.2961]
[1732256509521,0.03706441,3367.2,3366.7,0.2961]
[1732256510040,0.832,3367.1,3366.7,0.2961]
[1732256510331,0.31100671,3367.0,3366.7,0.2961]
[1732256510631,0.31100671,3367.0,3366.2,0.01]
[1732256510632,0.2739423,3366.9,3366.8,0.2961]
[1732256511528,0.2739423,3366.9,3366.2,0.2961]
[1732256511715,0.31100671,3366.8,3366.2,0.2961]
[1732256511904,0.2739423,3366.7,3366.2,0.2961]
[1732256512104,0.31100671,3366.6,3366.2,0.2961]
[1732256512402,0.2739423,3366.5,3366.2,0.2961]
[1732256512624,0.2739423,3366.5,3366.0,0.01]
[1732256512802,0.2739423,3366.4,3366.0,0.01]
[1732256513012,0.03706441,3366.8,3366.0,0.01]
[1732256513013,0.2739423,3366.3,3366.0,0.01]
[1732256513217,0.2739423,3366.2,3366.0,0.01]
[1732256513563,0.03706441,3366.9,3366.1,0.01]
[1732256513712,0.27399199,3366.8,3366.1,0.01]
[1732256513926,0.31105279,3366.7,3366.1,0.01]
[1732256514221,0.27398838,3366.6,3366.3,0.3061]
[1732256514624,0.31105279,3366.5,3366.3,0.3061]
[1732256514839,0.27398838,3366.4,3366.3,0.3061]
[1732256515053,0.27398838,3366.4,3366.3,0.2961]
[1732256516250,0.27398838,3366.9,3366.3,0.2961]
[1732256516459,0.31105279,3366.8,3366.3,0.2961]
[1732256516766,0.27398838,3366.7,3366.3,0.2961]
[1732256516923,0.31105279,3366.6,3366.3,0.2961]
[1732256517123,0.27398838,3366.5,3366.3,0.2961]
[1732256517424,0.2739693,3366.4,3366.0,0.3061]
[1732256517630,0.2739693,3366.3,3366.0,0.3061]
[1732256517854,0.2739693,3366.2,3366.0,0.3061]
[1732256518058,0.03706441,3366.6,3366.0,0.2961]
[1732256518241,0.2740177,3366.5,3366.0,0.2961]
[1732256518589,0.31108211,3366.4,3366.0,0.2961]
[1732256518755,0.2740177,3366.4,3366.0,0.2961]
[1732256518958,0.2740177,3366.3,3366.0,0.2961]
[1732256519126,0.2740177,3366.2,3366.0,0.2961]
[1732256519330,0.2740177,3366.1,3366.0,0.2961]
[1732256520034,0.2740177,3366.5,3366.0,0.2961]
[1732256520227,1.2886155,3366.8,3366.0,0.2961]
[1732256520228,0.31108211,3366.4,3366.0,0.2961]
[1732256520430,0.2740177,3366.3,3366.0,0.2961]
[1732256520623,0.31108211,3366.2,3365.7,0.3061]
[1732256520865,0.2740177,3366.1,3365.7,0.3061]
[1732256521159,0.832,3366.8,3365.7,0.2961]
[1732256521160,0.31108211,3366.0,3365.7,0.2961]
[1732256521367,0.2740177,3365.9,3365.7,0.2961]
[1732256521530,0.89496638,3366.4,3365.7,0.2961]
[1732256521531,0.31108211,3365.8,3365.7,0.2961]
[1732256521725,0.31108211,3365.8,3365.3,0.2961]
[1732256521955,0.15948476,3366.2,3365.3,0.2961]
[1732256522228,0.832,3366.2,3365.3,0.2961]
[1732256524453,0.832,3366.2,3365.4,0.01]
[1732256524657,0.45664296,3366.4,3365.4,0.02]
[1732256524868,1.28864296,3366.6,3365.4,0.02]
[1732256525073,0.45664296,3366.5,3365.3,0.2961]
[1732256525584,3.832,3366.6,3365.3,0.2961]
[1732256525585,0.45664296,3366.1,3365.3,0.2961]
[1732256525873,0.45664296,3366.2,3365.3,0.2961]
[1732256526044,0.45664296,3366.2,3365.0,0.3061]
[1732256526244,0.45664296,3366.1,3365.0,0.3061]
[1732256526645,0.832,3366.0,3365.0,0.2961]
[1732256526958,0.55,3365.8,3365.0,0.2961]
[1732256527134,0.55,3365.8,3365.1,0.2961]
[1732256527135,0.45664296,3365.6,3365.1,0.2961]
[1732256527573,0.45664296,3365.7,3365.1,0.2961]
[1732256527978,1.00664296,3365.8,3365.1,0.2961]
[1732256528138,0.45664296,3365.7,3364.7,0.2961]
[1732256528337,1.00664296,3365.8,3364.7,0.2961]
[1732256528676,0.832,3365.7,3364.7,0.2961]
[1732256528973,1.28864296,3365.7,3364.7,0.2961]
[1732256529180,0.832,3365.7,3364.4,0.3061]
[1732256529341,0.832,3365.7,3364.4,0.3161]
[1732256529678,0.832,3365.7,3364.4,0.2961]
[1732256529980,0.832,3365.7,3364.4,0.3061]
[1732256530275,0.832,3365.7,3364.4,0.2961]
[1732256530476,0.832,3365.7,3363.8,0.31648776]
[1732256530477,3.80359,3365.2,3362.8,0.7899]
[1732256530682,0.55,3363.5,3362.2,0.7899]
[1732256530981,4.48574348,3363.5,3362.2,0.7899]
[1732256531284,1.00492263,3363.3,3362.2,0.7899]
[1732256531455,3.0,3363.4,3361.7,0.7899]
[1732256531456,0.55,3363.1,3361.7,0.7899]
[1732256531653,0.55,3363.1,3361.8,0.2962]
[1732256531971,4.03082085,3363.1,3361.8,0.2962]
[1732256532176,0.7744,3362.8,3361.8,0.2962]
[1732256532338,3.7744,3362.0,3360.9,0.02]
[1732256532534,3.7744,3362.0,3360.9,0.01]
[1732256532732,0.7744,3362.0,3360.9,0.01]
[1732256533875,0.55,3361.9,3360.9,0.01]
[1732256534438,0.55,3361.9,3360.5,0.832]
[1732256534658,0.55,3361.5,3360.2,0.832]
[1732256536975,0.55,3361.5,3360.0,1.60835156]
[1732256536976,0.55,3361.3,3360.0,1.58835156]
[1732256537192,0.55,3361.3,3360.1,0.15883516]